[Event "FIDE WCCC Open-08 2024"]
[Site "Montesilvano"]
[Date "2024.11.18"]
[Round "3.36"]
[White "Batbileg, Boldbaatar"]
[Black "Melkonyan, Mark"]
[Result "0-1"]
[ECO "D53"]
[WhiteElo "1623"]
[BlackElo "1445"]
[PlyCount "152"]
[EventDate "2024.11.18"]
[EventType "swiss"]
[EventCountry "ITA"]
[TimeControl "5400+30"]

1. d4 {[%emt 0:00:06]} d5 {[%emt 0:00:07]} 2. c4 {[%emt 0:00:16]} e6 {[%emt 0:00:22]} 3. Nc3 {[%emt 0:00:49]} Be7 {[%emt 0:00:30]} 4. Nf3 {[%emt 0:00:41]} Nf6 {[%emt 0:00:07]} 5. Bg5 {[%emt 0:00:33]} O-O {[%emt 0:00:29]} 6. e3 {[%emt 0:00:27]} h6 {[%emt 0:00:12]} 7. Bh4 c6 8. cxd5 {[%emt 0:02:12]} Nxd5 {[%emt 0:01:42]} 9. Bxe7 {[%emt 0:01:34]} Qxe7 {[%emt 0:04:18]} 10. e4 {[%emt 0:01:22]} Nxc3 {[%emt 0:13:45]} 11. bxc3 Rd8 {[%emt 0:02:04]} 12. Be2 {[%emt 0:03:31]} c5 {[%emt 0:01:10]} 13. O-O {[%emt 0:01:18]} Nc6 {[%emt 0:02:34]} 14. d5 {[%emt 0:01:15]} exd5 {[%emt 0:01:46]} 15. exd5 {[%emt 0:00:15]} Qf6 {[%emt 0:17:32]} 16. c4 {[%emt 0:03:44]} Bg4 {[%emt 0:05:41]} 17. Nd2 {[%emt 0:07:22]} Bxe2 {[%emt 0:01:12]} 18. Qxe2 {[%emt 0:00:40]} Nd4 {[%emt 0:01:01]} 19. Qd3 {[%emt 0:00:30]} Qg6 {[%emt 0:09:12]} 20. Qxg6 {[%emt 0:06:53]} fxg6 {[%emt 0:00:15]} 21. a4 Re8 {[%emt 0:03:09]} 22. Rab1 {[%emt 0:02:02]} b6 {[%emt 0:02:54]} 23. Rfe1 {[%emt 0:06:21]} Ne2+ {[%emt 0:02:33]} 24. Kf1 {[%emt 0:00:23]} Nc3 {[%emt 0:02:13]} 25. Ra1 {[%emt 0:05:00]} Rxe1+ {[%emt 0:04:19]} 26. Kxe1 {[%emt 0:01:16]} Re8+ {[%emt 0:01:00]} 27. Kf1 {[%emt 0:00:20]} Re2 {[%emt 0:01:39]} 28. Nb1 {[%emt 0:01:25]} Re8 {[%emt 0:00:00]} 29. Nd2 {[%emt 0:00:00]} Re2 {[%emt 0:01:00]} 30. Nb1 {[%emt 0:01:00]} Rc2 {[%emt 0:08:44]} 31. Na3 {[%emt 0:01:05]} Rb2 {[%emt 0:02:34]} 32. Nb5 {[%emt 0:00:00]} Re2 {[%emt 0:00:00]} 33. Na3 {[%emt 0:01:00]} Rb2 {[%emt 0:01:00]} 34. Nb5 Rb1+ {[%emt 0:02:01]} 35. Rxb1 {[%emt 0:02:20]} Nxb1 {[%emt 0:00:19]} 36. Nd6 {[%emt 0:02:19]} Kf8 {[%emt 0:05:48]} 37. Ne4 {[%emt 0:02:13]} Na3 {[%emt 0:00:45]} 38. Nd2 {[%emt 0:00:18]} Ke7 {[%emt 0:01:43]} 39. Ke2 {[%emt 0:01:20]} Nc2 {[%emt 0:00:14]} 40. Kd3 {[%emt 0:00:34]} Ne1+ {[%emt 0:01:49]} 41. Ke4 {[%emt 0:00:06]} Nxg2 {[%emt 0:00:16]} 42. Nb3 {[%emt 0:00:03]} Ne1 {[%emt 0:01:14]} 43. Na1 {[%emt 0:00:17]} Kd6 {[%emt 0:00:44]} 44. Nb3 {[%emt 0:00:43]} Ke7 {[%emt 0:00:16]} 45. Na1 {[%emt 0:00:17]} Kd6 {[%emt 0:00:44]} 46. h3 {[%emt 0:03:33]} Ng2 {[%emt 0:00:32]} 47. Nc2 {[%emt 0:01:19]} Nh4 {[%emt 0:01:11]} 48. Ne3 {[%emt 0:00:17]} g5 {[%emt 0:00:36]} 49. Nf5+ {[%emt 0:00:25]} Nxf5 {[%emt 0:00:27]} 50. Kxf5 {[%emt 0:00:06]} a6 {[%emt 0:00:34]} 51. Ke4 {[%emt 0:00:40]} g6 {[%emt 0:00:12]} 52. f3 {[%emt 0:01:13]} h5 {[%emt 0:00:53]} 53. Kd3 {[%emt 0:00:58]} b5 {[%emt 0:00:40]} 54. axb5 {[%emt 0:00:53]} axb5 {[%emt 0:00:08]} 55. cxb5 {[%emt 0:00:04]} Kxd5 {[%emt 0:00:05]} 56. Kc3 {[%emt 0:00:29]} h4 {[%emt 0:00:21]} 57. Kb3 {[%emt 0:01:27]} c4+ {[%emt 0:00:07]} 58. Kb4 {[%emt 0:00:07]} Kd4 {[%emt 0:00:56]} 59. b6 {[%emt 0:00:23]} c3 {[%emt 0:00:14]} 60. b7 {[%emt 0:00:14]} c2 {[%emt 0:00:05]} 61. b8=Q {[%emt 0:00:06]} c1=Q {[%emt 0:00:14]} 62. Qd8+ {[%emt 0:04:18]} Ke5 {[%emt 0:01:23]} 63. Qb8+ {[%emt 0:09:28]} Kf5 {[%emt 0:01:08]} 64. Qf8+ {[%emt 0:00:11]} Ke5 {[%emt 0:00:37]} 65. Qe7+ {[%emt 0:01:06]} Kf4 {[%emt 0:00:56]} 66. Qe4+ {[%emt 0:02:13]} Kg3 {[%emt 0:00:26]} 67. Qg4+ {[%emt 0:00:13]} Kh2 {[%emt 0:00:00]} 68. Qc8 {[%emt 0:00:00]} Kg3 {[%emt 0:01:00]} 69. Qg4+ {[%emt 0:01:00]} Kh2 {[%emt 0:00:30]} 70. Kb3 {[%emt 0:04:20]} Qb1+ {[%emt 0:00:27]} 71. Kc3 {[%emt 0:00:07]} Qc1+ {[%emt 0:00:12]} 72. Kd4 {[%emt 0:00:07]} Qf4+ {[%emt 0:00:00]} 73. Kc3 {[%emt 0:00:53]} Qc1+ {[%emt 0:01:00]} 74. Kd4 {[%emt 0:00:07]} Qf4+ 75. Qxf4+ {[%emt 0:01:05]} gxf4 {[%emt 0:00:15]} 76. Ke4 {[%emt 0:00:45]} Kg3 {[%emt 0:00:06]} 0-1

[Event "FIDE WCCC Open-08 2024"]
[Site "Montesilvano"]
[Date "2024.11.18"]
[Round "3.37"]
[White "Smilga, Olivers"]
[Black "Khantulga, Tuvshinbayar"]
[Result "0-1"]
[ECO "C47"]
[WhiteElo "1439"]
[BlackElo "1611"]
[PlyCount "112"]
[EventDate "2024.11.18"]
[EventType "swiss"]
[EventCountry "ITA"]
[TimeControl "5400+30"]

1. e4 {[%emt 0:00:05]} e5 {[%emt 0:00:08]} 2. Nf3 {[%emt 0:00:06]} Nc6 {[%emt 0:00:05]} 3. d4 {[%emt 0:00:14]} exd4 {[%emt 0:00:06]} 4. Nxd4 {[%emt 0:00:13]} Nf6 {[%emt 0:00:06]} 5. Nc3 {[%emt 0:00:10]} Bb4 {[%emt 0:00:06]} 6. Nxc6 {[%emt 0:01:26]} bxc6 {[%emt 0:00:05]} 7. Bd3 {[%emt 0:00:09]} d5 {[%emt 0:00:07]} 8. exd5 {[%emt 0:01:11]} cxd5 {[%emt 0:00:05]} 9. O-O {[%emt 0:00:19]} O-O {[%emt 0:00:06]} 10. Bg5 {[%emt 0:00:08]} c5 11. Qf3 {[%emt 0:07:06]} Bb7 {[%emt 0:01:14]} 12. Bxf6 {[%emt 0:03:34]} Qxf6 {[%emt 0:00:16]} 13. Qxf6 {[%emt 0:00:27]} gxf6 14. Ne2 {[%emt 0:15:16]} Rfe8 {[%emt 0:00:45]} 15. Ng3 {[%emt 0:03:37]} c4 {[%emt 0:01:58]} 16. Be2 {[%emt 0:01:39]} f5 {[%emt 0:00:46]} 17. Bf3 {[%emt 0:03:26]} Re5 {[%emt 0:01:51]} 18. c3 {[%emt 0:01:28]} Bd6 {[%emt 0:00:44]} 19. Rfe1 {[%emt 0:02:06]} Rae8 {[%emt 0:00:22]} 20. Kf1 {[%emt 0:01:18]} Kf8 {[%emt 0:03:04]} 21. Rxe5 {[%emt 0:07:14]} Rxe5 {[%emt 0:00:11]} 22. Re1 {[%emt 0:00:16]} f4 {[%emt 0:00:59]} 23. Rxe5 {[%emt 0:00:31]} Bxe5 {[%emt 0:00:31]} 24. Ne2 {[%emt 0:00:10]} Ke7 {[%emt 0:00:38]} 25. Ke1 {[%emt 0:02:11]} Kd6 {[%emt 0:00:52]} 26. Kd2 {[%emt 0:00:30]} Kc5 {[%emt 0:00:42]} 27. h3 {[%emt 0:01:30]} Bc8 {[%emt 0:01:19]} 28. Kd1 {[%emt 0:02:25]} Bf5 {[%emt 0:01:01]} 29. Kc1 {[%emt 0:01:10]} d4 {[%emt 0:01:46]} 30. cxd4+ {[%emt 0:00:17]} Bxd4 {[%emt 0:00:14]} 31. Nxd4 {[%emt 0:00:08]} Kxd4 {[%emt 0:00:22]} 32. Kd2 {[%emt 0:00:05]} f6 {[%emt 0:01:33]} 33. h4 {[%emt 0:04:43]} h6 {[%emt 0:01:05]} 34. a3 {[%emt 0:02:27]} a6 {[%emt 0:01:58]} 35. Bb7 {[%emt 0:05:08]} a5 {[%emt 0:00:09]} 36. Bf3 {[%emt 0:00:28]} Bd7 {[%emt 0:01:34]} 37. Bb7 {[%emt 0:07:09]} Be8 {[%emt 0:01:51]} 38. Bf3 {[%emt 0:00:12]} Bg6 {[%emt 0:00:58]} 39. Bc6 {[%emt 0:01:12]} Bh5 {[%emt 0:00:29]} 40. Bf3 {[%emt 0:01:32]} Bxf3 {[%emt 0:00:25]} 41. gxf3 {[%emt 0:00:09]} h5 {[%emt 0:00:14]} 42. a4 {[%emt 0:00:14]} Kc5 {[%emt 0:00:28]} 43. Kc3 {[%emt 0:00:36]} f5 {[%emt 0:00:08]} 44. b3 {[%emt 0:00:14]} cxb3 {[%emt 0:00:05]} 45. Kxb3 {[%emt 0:00:18]} Kd4 {[%emt 0:00:05]} 46. Ka3 {[%emt 0:00:19]} Kc3 {[%emt 0:00:07]} 47. Ka2 {[%emt 0:00:44]} Kb4 {[%emt 0:00:08]} 48. Kb2 {[%emt 0:00:14]} Kxa4 {[%emt 0:00:18]} 49. Ka2 {[%emt 0:00:07]} Kb4 {[%emt 0:00:17]} 50. Kb2 {[%emt 0:00:09]} Kc4 {[%emt 0:00:09]} 51. Ka3 {[%emt 0:00:12]} Kd3 {[%emt 0:00:04]} 52. Ka4 {[%emt 0:00:04]} Ke2 {[%emt 0:00:09]} 53. Kxa5 {[%emt 0:00:08]} Kxf2 {[%emt 0:00:04]} 54. Kb4 {[%emt 0:00:13]} Kxf3 {[%emt 0:00:06]} 55. Kc3 {[%emt 0:00:20]} Ke2 {[%emt 0:00:05]} 56. Kc2 {[%emt 0:01:47]} f3 {[%emt 1:25:32]} 0-1

[Event "FIDE WCCC Open-08 2024"]
[Site "Montesilvano"]
[Date "2024.11.18"]
[Round "3.38"]
[White "Movsisyan, Samvel"]
[Black "Kuncoro, Harvey"]
[Result "1-0"]
[ECO "B22"]
[WhiteElo "1604"]
[BlackElo "1432"]
[PlyCount "51"]
[EventDate "2024.11.18"]
[EventType "swiss"]
[EventCountry "ITA"]
[TimeControl "5400+30"]

1. e4 {[%emt 0:00:03]} c5 {[%emt 0:00:10]} 2. c3 {[%emt 0:00:03]} d5 {[%emt 0:00:08]} 3. exd5 {[%emt 0:00:08]} Qxd5 {[%emt 0:00:13]} 4. d4 {[%emt 0:00:05]} Nc6 {[%emt 0:00:11]} 5. Nf3 {[%emt 0:00:08]} Bg4 {[%emt 0:00:06]} 6. Be2 {[%emt 0:00:06]} e6 {[%emt 0:01:22]} 7. h3 {[%emt 0:00:05]} Bxf3 {[%emt 0:00:17]} 8. Bxf3 {[%emt 0:00:06]} Qd8 {[%emt 0:00:08]} 9. Be3 cxd4 {[%emt 0:03:31]} 10. cxd4 {[%emt 0:02:03]} Nf6 {[%emt 0:02:06]} 11. Nc3 {[%emt 0:00:21]} Nd5 {[%emt 0:03:13]} 12. Nxd5 {[%emt 0:00:20]} exd5 {[%emt 0:00:45]} 13. O-O {[%emt 0:00:04]} Qb6 {[%emt 0:10:16]} 14. Bxd5 O-O-O {[%emt 0:06:04]} 15. Bxc6 {[%emt 0:00:51]} bxc6 {[%emt 0:01:28]} 16. d5 {[%emt 0:01:12]} Qb5 {[%emt 0:02:57]} 17. Qg4+ {[%emt 0:00:31]} Kb7 {[%emt 0:02:19]} 18. dxc6+ {[%emt 0:00:13]} Qxc6 {[%emt 0:00:28]} 19. Rac1 {[%emt 0:00:06]} Qe6 {[%emt 0:01:13]} 20. Qa4 {[%emt 0:00:29]} a6 {[%emt 0:01:48]} 21. Qa5 {[%emt 0:01:00]} Rd7 {[%emt 0:01:25]} 22. Rc3 {[%emt 0:01:03]} Ka8 {[%emt 0:07:03]} 23. Rb3 {[%emt 0:01:02]} Qc4 {[%emt 0:05:57]} 24. Rc1 {[%emt 0:00:53]} Qxb3 {[%emt 0:02:39]} 25. Qxa6+ {[%emt 0:00:17]} Ra7 {[%emt 0:01:57]} 26. Qxa7# {[%emt 0:00:36]} 1-0

[Event "FIDE WCCC Open-08 2024"]
[Site "Montesilvano"]
[Date "2024.11.18"]
[Round "3.39"]
[White "Ameen Akbar T A"]
[Black "Jevglevski, Lev"]
[Result "0-1"]
[ECO "C17"]
[WhiteElo "1579"]
[BlackElo "1602"]
[PlyCount "78"]
[EventDate "2024.11.18"]
[EventType "swiss"]
[EventCountry "ITA"]
[TimeControl "5400+30"]

1. e4 {[%emt 0:00:17]} e6 {[%emt 0:00:06]} 2. d4 {[%emt 0:00:13]} d5 {[%emt 0:00:05]} 3. Nc3 {[%emt 0:00:33]} Bb4 {[%emt 0:01:35]} 4. e5 {[%emt 0:03:58]} c5 {[%emt 0:00:06]} 5. f4 {[%emt 0:17:04]} Nc6 {[%emt 0:03:29]} 6. Bb5 {[%emt 0:02:50]} Qb6 {[%emt 0:01:46]} 7. Bxc6+ {[%emt 0:03:35]} bxc6 {[%emt 0:02:13]} 8. Nf3 {[%emt 0:05:57]} cxd4 {[%emt 0:04:05]} 9. Nxd4 {[%emt 0:00:44]} c5 {[%emt 0:02:11]} 10. Nf3 {[%emt 0:04:30]} d4 {[%emt 0:02:26]} 11. Bd2 {[%emt 0:03:46]} dxc3 {[%emt 0:00:48]} 12. bxc3 {[%emt 0:00:03]} Ba3 {[%emt 0:00:50]} 13. Rb1 {[%emt 0:00:27]} Qa6 {[%emt 0:02:24]} 14. Be3 {[%emt 0:08:25]} Ne7 {[%emt 0:04:54]} 15. Qd6 {[%emt 0:15:23]} Qxd6 {[%emt 0:03:55]} 16. exd6 {[%emt 0:00:07]} Nf5 {[%emt 0:01:25]} 17. Bf2 {[%emt 0:01:59]} c4 {[%emt 0:04:24]} 18. O-O {[%emt 0:02:00]} Bxd6 {[%emt 0:01:48]} 19. Rbd1 {[%emt 0:01:33]} Bxf4 {[%emt 0:01:50]} 20. Rfe1 {[%emt 0:01:43]} Bb7 {[%emt 0:01:55]} 21. Nd4 {[%emt 0:02:01]} O-O-O {[%emt 0:00:59]} 22. Nxf5 {[%emt 0:03:08]} exf5 {[%emt 0:00:20]} 23. Bxa7 {[%emt 0:03:32]} Rxd1 {[%emt 0:00:22]} 24. Rxd1 {[%emt 0:00:25]} Rd8 {[%emt 0:00:03]} 25. Re1 {[%emt 0:00:13]} Rd2 {[%emt 0:01:13]} 26. Re7 {[%emt 0:02:48]} Rxg2+ {[%emt 0:00:45]} 27. Kf1 {[%emt 0:02:30]} Bxh2 {[%emt 0:00:48]} 28. Rxb7 {[%emt 0:00:56]} Kxb7 {[%emt 0:00:16]} 29. Kxg2 {[%emt 0:00:20]} Kxa7 {[%emt 0:00:11]} 30. Kxh2 {[%emt 0:00:07]} Ka6 {[%emt 0:00:22]} 31. Kg3 {[%emt 0:00:09]} g5 {[%emt 0:00:36]} 32. Kf3 {[%emt 0:00:29]} g4+ {[%emt 0:00:16]} 33. Kg3 {[%emt 0:00:11]} Ka5 {[%emt 0:00:25]} 34. Kf4 {[%emt 0:00:28]} h5 {[%emt 0:00:39]} 35. Kxf5 {[%emt 0:00:17]} g3 {[%emt 0:00:14]} 36. Ke4 {[%emt 0:00:24]} g2 {[%emt 0:00:28]} 37. Kd4 {[%emt 0:00:04]} g1=Q+ {[%emt 0:00:20]} 38. Kxc4 {[%emt 0:00:15]} h4 {[%emt 0:00:18]} 39. a3 {[%emt 0:00:20]} h3 {[%emt 0:00:10]} 0-1

[Event "FIDE WCCC Open-08 2024"]
[Site "Montesilvano"]
[Date "2024.11.18"]
[Round "3.41"]
[White "Bakirli, Matin"]
[Black "Thomas, Robert K"]
[Result "1-0"]
[ECO "B28"]
[WhiteElo "1578"]
[BlackElo "2166"]
[PlyCount "81"]
[EventDate "2024.11.18"]
[EventType "swiss"]
[EventCountry "ITA"]
[TimeControl "5400+30"]

1. e4 c5 2. Nf3 a6 3. d4 {[%emt 0:01:30]} cxd4 {[%emt 0:01:30]} 4. Nxd4 {[%emt 0:00:00]} Nf6 {[%emt 0:00:13]} 5. Nc3 {[%emt 0:00:00]} e5 {[%emt 0:00:05]} 6. Nf3 {[%emt 0:00:00]} Bb4 {[%emt 0:00:05]} 7. Qd3 {[%emt 0:03:40]} O-O {[%emt 0:04:47]} 8. a3 {[%emt 0:01:12]} Bc5 {[%emt 0:02:27]} 9. Bg5 {[%emt 0:05:03]} Qb6 {[%emt 0:03:50]} 10. Bxf6 {[%emt 0:03:09]} Bxf2+ {[%emt 0:04:19]} 11. Ke2 {[%emt 0:01:36]} gxf6 {[%emt 0:02:45]} 12. Nd5 {[%emt 0:02:36]} Qxb2 {[%emt 0:02:38]} 13. Rd1 {[%emt 0:03:31]} Ba7 {[%emt 0:02:43]} 14. Nxf6+ {[%emt 0:02:44]} Kh8 {[%emt 0:05:09]} 15. Nd5 {[%emt 0:04:58]} d6 {[%emt 0:07:15]} 16. Nb4 {[%emt 0:09:11]} a5 {[%emt 0:08:15]} 17. Qxd6 {[%emt 0:07:17]} Nd7 {[%emt 0:03:16]} 18. Nd3 {[%emt 0:06:43]} Qxc2+ {[%emt 0:01:47]} 19. Rd2 {[%emt 0:01:01]} Qa4 {[%emt 0:07:35]} 20. Nf2 {[%emt 0:16:14]} Bxf2 {[%emt 0:07:08]} 21. Kxf2 {[%emt 0:01:06]} Qxe4 {[%emt 0:02:05]} 22. Bb5 {[%emt 0:05:18]} Rd8 {[%emt 0:05:38]} 23. Qe7 {[%emt 0:05:49]} Qg6 {[%emt 0:02:18]} 24. Qxd8+ {[%emt 0:00:14]} Kg7 {[%emt 0:00:31]} 25. Bxd7 {[%emt 0:01:14]} Bxd7 {[%emt 0:00:52]} 26. Qxd7 {[%emt 0:00:25]} Qb6+ {[%emt 0:00:22]} 27. Ke2 {[%emt 0:01:20]} Qa6+ {[%emt 0:00:30]} 28. Qd3 {[%emt 0:00:12]} Qe6 {[%emt 0:00:56]} 29. Qc3 {[%emt 0:01:35]} Qa6+ {[%emt 0:00:31]} 30. Ke1 {[%emt 0:00:33]} Re8 {[%emt 0:01:21]} 31. Re2 {[%emt 0:00:31]} f6 {[%emt 0:00:25]} 32. Qc7+ {[%emt 0:03:35]} Kf8 {[%emt 0:00:29]} 33. Rf1 {[%emt 0:01:09]} Qd3 {[%emt 0:01:52]} 34. Nxe5 {[%emt 0:02:06]} Qb1+ {[%emt 0:00:34]} 35. Kf2 {[%emt 0:00:04]} Qf5+ {[%emt 0:00:20]} 36. Kg1 {[%emt 0:00:05]} Qh5 {[%emt 0:23:59]} 37. Nd7+ {[%emt 0:00:14]} Kf7 {[%emt 0:00:00]} 38. Nxf6+ {[%emt 0:00:08]} Kf8 {[%emt 0:00:00]} 39. Nxh5+ {[%emt 0:00:16]} Kg8 {[%emt 0:00:00]} 40. Re4 {[%emt 0:14:11]} Re6 41. Rxe6 {[%emt 0:00:00]} 1-0

[Event "FIDE WCCC Open-08 2024"]
[Site "Montesilvano"]
[Date "2024.11.18"]
[Round "3.45"]
[White "Chanishvili, Noa"]
[Black "Alloussi, Arian"]
[Result "0-1"]
[ECO "C28"]
[WhiteElo "1553"]
[BlackElo "1745"]
[PlyCount "136"]
[EventDate "2024.11.18"]
[EventType "swiss"]
[EventCountry "ITA"]
[TimeControl "5400+30"]

1. e4 {[%emt 0:00:03]} e5 {[%emt 0:00:06]} 2. Nc3 {[%emt 0:00:10]} Nf6 {[%emt 0:00:05]} 3. Bc4 {[%emt 0:00:16]} Nc6 {[%emt 0:00:25]} 4. d3 {[%emt 0:00:16]} Bc5 {[%emt 0:00:29]} 5. Be3 {[%emt 0:00:12]} Bb6 {[%emt 0:01:04]} 6. h3 {[%emt 0:00:30]} d6 {[%emt 0:00:45]} 7. Nge2 {[%emt 0:00:23]} Be6 8. Bb3 h6 {[%emt 0:02:17]} 9. O-O {[%emt 0:00:54]} Qd7 {[%emt 0:03:02]} 10. Bxb6 {[%emt 0:01:57]} axb6 {[%emt 0:00:11]} 11. f4 {[%emt 0:00:59]} O-O {[%emt 0:05:38]} 12. Ba4 {[%emt 0:01:18]} exf4 {[%emt 0:08:30]} 13. Nxf4 d5 {[%emt 0:04:41]} 14. exd5 {[%emt 0:01:16]} Nxd5 {[%emt 0:00:21]} 15. Bxc6 {[%emt 0:00:57]} Qxc6 {[%emt 0:00:31]} 16. Ncxd5 {[%emt 0:00:38]} Bxd5 {[%emt 0:00:20]} 17. Nxd5 {[%emt 0:00:20]} Qxd5 {[%emt 0:00:08]} 18. Kh1 {[%emt 0:01:15]} Rxa2 {[%emt 0:05:09]} 19. Rxa2 {[%emt 0:00:54]} Qxa2 {[%emt 0:00:22]} 20. Qc1 {[%emt 0:05:13]} Qd5 {[%emt 0:05:56]} 21. Qf4 {[%emt 0:02:42]} Qc5 {[%emt 0:02:28]} 22. Qd2 {[%emt 0:00:58]} c6 {[%emt 0:08:12]} 23. Re1 {[%emt 0:00:48]} Qd6 {[%emt 0:02:00]} 24. Qe2 {[%emt 0:04:52]} f5 {[%emt 0:05:13]} 25. Qe7 {[%emt 0:01:20]} Qxe7 {[%emt 0:00:33]} 26. Rxe7 {[%emt 0:00:08]} Rf7 {[%emt 0:00:06]} 27. Re8+ {[%emt 0:00:41]} Kh7 {[%emt 0:00:11]} 28. Re6 {[%emt 0:00:38]} Rd7 {[%emt 0:05:31]} 29. b4 {[%emt 0:01:46]} b5 {[%emt 0:01:07]} 30. Kg1 {[%emt 0:00:19]} Rd4 {[%emt 0:04:12]} 31. Re5 {[%emt 0:01:10]} Kg6 {[%emt 0:01:31]} 32. Re7 {[%emt 0:07:04]} Rxb4 {[%emt 0:00:45]} 33. Rxb7 {[%emt 0:00:14]} Rb1+ {[%emt 0:00:22]} 34. Kh2 {[%emt 0:00:16]} Rc1 {[%emt 0:01:08]} 35. c4 {[%emt 0:00:38]} bxc4 {[%emt 0:01:45]} 36. dxc4 {[%emt 0:01:10]} Rxc4 {[%emt 0:00:36]} 37. Rc7 {[%emt 0:02:50]} f4 {[%emt 0:02:15]} 38. Rc8 {[%emt 0:00:49]} c5 {[%emt 0:01:34]} 39. Rc6+ {[%emt 0:00:28]} Kf5 {[%emt 0:02:22]} 40. Rc7 {[%emt 0:00:36]} g5 {[%emt 0:01:07]} 41. Rc6 {[%emt 0:01:02]} Rc2 {[%emt 0:00:39]} 42. Rc8 {[%emt 0:00:42]} c4 {[%emt 0:01:08]} 43. Re8 {[%emt 0:03:26]} c3 {[%emt 0:01:01]} 44. Rc8 {[%emt 0:01:02]} Rc1 {[%emt 0:00:59]} 45. Re8 {[%emt 0:00:36]} c2 {[%emt 0:00:22]} 46. Rc8 {[%emt 0:00:21]} Ke4 {[%emt 0:01:24]} 47. Re8+ {[%emt 0:00:55]} Kd3 {[%emt 0:00:11]} 48. Rd8+ {[%emt 0:00:10]} Ke2 {[%emt 0:00:08]} 49. Re8+ {[%emt 0:00:17]} Kf2 {[%emt 0:00:13]} 50. Rc8 {[%emt 0:00:12]} h5 {[%emt 0:00:13]} 51. Rc4 {[%emt 0:00:34]} Kf1 {[%emt 0:01:45]} 52. Rc5 {[%emt 0:01:18]} g4 {[%emt 0:04:22]} 53. hxg4 {[%emt 0:00:12]} hxg4 {[%emt 0:00:06]} 54. Rc4 {[%emt 0:03:17]} g3+ {[%emt 0:02:41]} 55. Kh3 {[%emt 0:00:18]} Ke2 {[%emt 0:00:31]} 56. Kg4 {[%emt 0:00:30]} f3 {[%emt 0:01:29]} 57. Re4+ {[%emt 0:02:17]} Kd3 {[%emt 0:00:20]} 58. Rf4 {[%emt 0:01:21]} fxg2 {[%emt 0:01:05]} 59. Rf3+ {[%emt 0:54:32]} Ke2 {[%emt 0:18:25]} 60. Rxg3 {[%emt 0:00:00]} g1=Q {[%emt 0:00:00]} 61. Rxg1 {[%emt 0:00:00]} Rxg1+ {[%emt 0:00:00]} 62. Kf4 {[%emt 0:00:00]} c1=Q+ {[%emt 0:00:00]} 63. Ke4 {[%emt 0:00:00]} Qe3+ {[%emt 0:00:00]} 64. Kd5 {[%emt 0:00:00]} Rd1+ {[%emt 0:00:00]} 65. Kc4 {[%emt 0:00:00]} Qd4+ {[%emt 0:00:00]} 66. Kb5 {[%emt 0:00:00]} Qc3 {[%emt 0:00:00]} 67. Ka4 {[%emt 0:00:00]} Qb2 {[%emt 0:00:00]} 68. Ka5 {[%emt 0:00:00]} Ra1# {[%emt 0:00:00]} 0-1

[Event "FIDE WCCC Open-08 2024"]
[Site "Montesilvano"]
[Date "2024.11.18"]
[Round "3.46"]
[White "Arsenijevic, Matija"]
[Black "Contreras Salcedo, Samuel Esteban"]
[Result "1-0"]
[ECO "D30"]
[WhiteElo "1700"]
[BlackElo "1508"]
[PlyCount "93"]
[EventDate "2024.11.18"]
[EventType "swiss"]
[EventCountry "ITA"]
[TimeControl "5400+30"]

1. d4 {[%emt 0:00:01]} Nf6 {[%emt 0:00:32]} 2. Nf3 {[%emt 0:00:05]} d5 {[%emt 0:01:06]} 3. c4 {[%emt 0:00:16]} e6 {[%emt 0:00:20]} 4. cxd5 {[%emt 0:00:20]} Qxd5 {[%emt 0:01:26]} 5. Nc3 {[%emt 0:00:55]} Bb4 {[%emt 0:00:10]} 6. Bd2 {[%emt 0:00:30]} Bxc3 7. bxc3 {[%emt 0:00:44]} Bd7 {[%emt 0:00:32]} 8. e3 {[%emt 0:01:06]} Nc6 {[%emt 0:00:30]} 9. Bd3 {[%emt 0:01:21]} a6 {[%emt 0:01:03]} 10. O-O {[%emt 0:00:52]} b5 {[%emt 0:00:13]} 11. Qb3 {[%emt 0:06:09]} Qd6 {[%emt 0:07:36]} 12. e4 {[%emt 0:07:39]} e5 {[%emt 0:01:44]} 13. d5 {[%emt 0:03:52]} Na5 {[%emt 0:04:41]} 14. Qb4 {[%emt 0:01:30]} Qxb4 {[%emt 0:08:06]} 15. cxb4 {[%emt 0:00:06]} Nb7 {[%emt 0:00:32]} 16. Nxe5 {[%emt 0:00:12]} c5 {[%emt 0:01:22]} 17. dxc6 {[%emt 0:00:26]} Be6 {[%emt 0:01:45]} 18. cxb7 {[%emt 0:01:37]} Rb8 {[%emt 0:00:24]} 19. Bg5 {[%emt 0:00:34]} Rxb7 {[%emt 0:00:38]} 20. Bxf6 {[%emt 0:00:12]} gxf6 {[%emt 0:00:25]} 21. Nf3 {[%emt 0:00:15]} Rg8 {[%emt 0:00:30]} 22. Kh1 {[%emt 0:02:49]} h5 {[%emt 0:00:53]} 23. Nd4 {[%emt 0:00:54]} Bd7 {[%emt 0:00:31]} 24. Nf5 {[%emt 0:00:15]} Rh8 {[%emt 0:01:12]} 25. Nd6+ {[%emt 0:00:07]} Ke7 {[%emt 0:00:56]} 26. Nxb7 {[%emt 0:00:06]} h4 {[%emt 0:00:34]} 27. Nc5 {[%emt 0:00:30]} Bc8 {[%emt 0:00:23]} 28. h3 {[%emt 0:00:06]} Kd6 {[%emt 0:01:46]} 29. Rad1 {[%emt 0:00:31]} Ke5 {[%emt 0:00:19]} 30. Be2 {[%emt 0:00:21]} f5 {[%emt 0:00:50]} 31. exf5 {[%emt 0:00:23]} Kf6 {[%emt 0:01:29]} 32. Rd2 {[%emt 0:01:00]} Bxf5 {[%emt 0:02:22]} 33. Rfd1 {[%emt 0:00:28]} Rg8 {[%emt 0:01:04]} 34. Rd6+ {[%emt 0:00:19]} Kg7 {[%emt 0:00:49]} 35. R1d5 {[%emt 0:00:13]} Bg6 {[%emt 0:00:57]} 36. Bh5 {[%emt 0:00:28]} Re8 {[%emt 0:00:39]} 37. Bxg6 {[%emt 0:00:22]} Re1+ {[%emt 0:00:28]} 38. Kh2 {[%emt 0:00:07]} fxg6 {[%emt 0:00:21]} 39. Rd7+ {[%emt 0:00:19]} Kh6 {[%emt 0:01:08]} 40. Rd4 {[%emt 0:00:47]} Kh5 {[%emt 0:00:36]} 41. R7d5+ {[%emt 0:00:23]} Kh6 {[%emt 0:00:48]} 42. Rxh4+ {[%emt 0:00:10]} Kg7 {[%emt 0:00:45]} 43. Re4 {[%emt 0:00:05]} Rc1 {[%emt 0:01:03]} 44. Rd7+ {[%emt 0:00:31]} Kf6 {[%emt 0:01:14]} 45. Re6+ {[%emt 0:00:07]} Kf5 {[%emt 0:01:44]} 46. Rd5+ {[%emt 0:00:34]} Kf4 {[%emt 0:00:51]} 47. Re4# {[%emt 0:00:05]} 1-0

[Event "FIDE WCCC Open-08 2024"]
[Site "Montesilvano"]
[Date "2024.11.18"]
[Round "3.47"]
[White "Ranganathan, Aadith"]
[Black "Huang, Joshua Kai-En"]
[Result "1-0"]
[ECO "B52"]
[WhiteElo "1645"]
[BlackElo "1424"]
[PlyCount "59"]
[EventDate "2024.11.18"]
[EventType "swiss"]
[EventCountry "ITA"]
[TimeControl "5400+30"]

1. e4 {[%emt 0:00:06]} c5 {[%emt 0:01:04]} 2. Nf3 {[%emt 0:02:10]} d6 {[%emt 0:02:18]} 3. Bb5+ {[%emt 0:00:49]} Bd7 {[%emt 0:01:33]} 4. Bxd7+ {[%emt 0:01:10]} Qxd7 {[%emt 0:00:22]} 5. O-O {[%emt 0:00:53]} e5 {[%emt 0:00:57]} 6. c4 {[%emt 0:01:42]} Be7 {[%emt 0:00:27]} 7. Nc3 {[%emt 0:00:48]} Nc6 {[%emt 0:00:34]} 8. Nd5 {[%emt 0:00:35]} Bd8 {[%emt 0:00:25]} 9. d3 {[%emt 0:00:57]} Nge7 {[%emt 0:01:49]} 10. Ne1 {[%emt 0:01:24]} O-O {[%emt 0:01:22]} 11. f4 {[%emt 0:02:05]} f6 {[%emt 0:04:21]} 12. f5 {[%emt 0:00:43]} Ba5 {[%emt 0:01:12]} 13. Nc2 {[%emt 0:00:39]} Nxd5 {[%emt 0:00:33]} 14. cxd5 {[%emt 0:00:47]} Nd4 {[%emt 0:00:33]} 15. Nxd4 {[%emt 0:00:27]} exd4 {[%emt 0:00:09]} 16. Bf4 {[%emt 0:00:36]} Bc7 {[%emt 0:00:26]} 17. Rf3 {[%emt 0:00:26]} g5 {[%emt 0:00:21]} 18. fxg6 {[%emt 0:00:57]} hxg6 {[%emt 1:21:04]} 19. Rg3 {[%emt 0:00:57]} Kf7 {[%emt 0:00:00]} 20. Qf3 {[%emt 0:00:44]} Rg8 {[%emt 0:00:00]} 21. Rf1 {[%emt 0:00:24]} Raf8 {[%emt 0:00:00]} 22. Bh6 {[%emt 0:00:19]} Qe7 {[%emt 0:00:00]} 23. Bxf8 {[%emt 0:00:16]} Rxf8 {[%emt 0:00:00]} 24. Qg4 {[%emt 0:00:35]} Rg8 {[%emt 0:00:00]} 25. Rgf3 {[%emt 0:00:19]} Ke8 {[%emt 0:00:00]} 26. Rxf6 {[%emt 0:00:40]} Ba5 {[%emt 0:00:00]} 27. Qc8+ {[%emt 0:00:15]} Bd8 {[%emt 0:00:00]} 28. Re6 {[%emt 0:00:11]} Rh8 {[%emt 0:00:00]} 29. Rxe7+ {[%emt 0:00:07]} Kxe7 {[%emt 0:00:00]} 30. Qe6# {[%emt 0:00:50]} 1-0